Workbook

Sheet Sheet1
B1: Modifica solamente las casillas amarillas
B3: CALCULA TUS INGRESOS EN FUNCIÓN DEL PRECIO DE VENTA AL CONSUMIDOR
D5: IVA 21% | F5: IVA 10% | H5: IVA 4%
B6: Precio Final Consumidor | D6: 6.2 | F6: 4.9 | H6: 10.4
B7: IVA | D7: =D6-D8 -> 1.076033058 | F7: =F6-F8 -> 0.4454545455 | H7: =H6-H8 -> 0.4
B8: Precio (sin IVA) | D8: =D6/1.21 -> 5.123966942 | F8: =F6/1.1 -> 4.454545455 | H8: =H6/1.04 -> 10
B9: Comisión Responsable de la Colmena | D9: =D8*0.1 -> 0.5123966942 | F9: =F8*0.1 -> 0.4454545455 | H9: =H8*0.1 -> 1
B10: Comisión ¡La Colmena Que Dice Sí! | D10: =D8*0.13 -> 0.6661157025 | F10: =F8*0.13 -> 0.5790909091 | H10: =H8*0.13 -> 1.3
B11: Vuestros ingresos (sin tener en cuenta impuestos) | D11: =D8*0.8 -> 4.099173554 | F11: =F8*0.8 -> 3.563636364 | H11: =H8*0.8 -> 8
B13: IVA recuperado | D13: =D7 -> 1.076033058 | F13: =F7 -> 0.4454545455 | H13: =H7 -> 0.4
B14: IVA facturado por La Colmena y por el Responsable de Colmena (la mayoría de los casos es del 21%) | D14: =D10*0.21 -> 0.1398842975 | F14: =F10*0.21 -> 0.1216090909 | H14: =H10*0.21 -> 0.273
B17: Lo que se te ingresará en tu cuenta | D17: =D6-D9-D10-(2*D14) -> 4.741719008 | F17: =F6-F9-F10-(2*F14) -> 3.632236364 | H17: =H6-H9-H10-(2*H14) -> 7.554
